bitfinex/quotes_ETHUSD_20241231
["timestamp","ask_amount","ask_price","bid_price","bid_amount"]
[1735641313966,5.94264,3398.3,3398.2,6.58]
[1735641315871,5.94264,3398.3,3398.2,0.08]
[1735641316932,5.94264,3398.3,3398.2,6.58]
[1735641317872,3.0,3398.3,3398.2,7.3421]
[1735641318044,3.0,3398.3,3398.2,8.07631]
[1735641318375,2.9425,3398.5,3398.2,8.07631]
[1735641318735,2.94264,3398.3,3398.2,6.58]
[1735641319933,5.94264,3398.3,3398.2,0.08]
[1735641320949,5.94264,3398.3,3398.2,6.58]
[1735641322081,0.39167081,3398.5,3398.2,6.58]
[1735641322082,2.94252,3398.5,3398.2,6.58]
[1735641322246,2.94252,3398.5,3398.2,7.238]
[1735641322442,3.0,3398.4,3398.2,7.238]
[1735641322980,3.0,3398.4,3398.2,0.738]
[1735641323183,3.0,3398.4,3398.2,0.08]
[1735641323947,5.94256,3398.4,3398.3,6.5]
[1735641324964,2.94264,3398.3,3398.2,6.58]
[1735641325986,3.75858,3398.7,3398.2,6.58]
[1735641326290,3.0,3398.4,3398.2,6.58]
[1735641327086,2.94233,3398.7,3398.3,0.7621]
[1735641327299,3.0,3398.5,3398.3,0.7621]
[1735641327497,3.0,3398.5,3398.3,1.49631]
[1735641328161,4.15001081,3398.9,3398.3,0.7621]
[1735641328361,2.94249,3398.5,3398.3,0.7621]
[1735641328775,3.0,3398.8,3398.2,0.08]
[1735641328776,2.94264,3398.3,3398.2,0.08]
[1735641328973,3.75884,3398.3,3398.2,0.08]
[1735641329172,4.15051081,3398.3,3398.2,0.08]
[1735641330263,7.15051081,3398.3,3398.2,0.08]
[1735641330606,7.50676313,3398.3,3398.2,1e-05]
[1735641332261,7.50676313,3398.3,3398.2,0.06630465]
[1735641332592,7.50676313,3398.3,3398.2,0.06757022]
[1735641333465,7.15051081,3398.3,3398.2,0.06757022]
[1735641333871,7.15051081,3398.3,3398.2,1e-05]
[1735641334183,7.15051081,3398.3,3398.2,0.06757022]
[1735641336108,7.50676313,3398.3,3398.2,0.06757022]
[1735641337101,7.15051081,3398.3,3398.2,0.06757022]
[1735641340129,5.94264,3398.3,3398.2,0.06757022]
[1735641340797,7.13711081,3398.3,3398.2,0.06757022]
[1735641341289,6.33431081,3398.3,3398.2,0.06757022]
[1735641342994,7.49336313,3398.3,3398.2,0.06757022]
[1735641343331,3.74596,3397.7,3397.6,6.5]
[1735641344004,2.94334,3397.5,3397.4,6.5]
[1735641350784,2.94334,3397.5,3397.4,0.06220782]
[1735641351136,2.94342,3397.4,3397.3,6.5]
[1735641351925,2.94361,3397.2,3397.1,6.5]
[1735641352104,5.94361,3397.2,3397.1,8.03053611]
[1735641353058,5.94361,3397.2,3397.1,1.53053611]
[1735641353206,3.0,3397.2,3396.8,7.2895]
[1735641353405,2.94374,3397.1,3396.8,6.5]
[1735641354646,2.94374,3397.1,3396.8,7.35256201]
[1735641354867,2.94374,3397.1,3396.9,6.5]
[1735641355534,3.0,3397.2,3397.0,0.7895]
[1735641355909,5.9436,3397.2,3397.0,0.7895]
[1735641356845,5.9436,3397.2,3397.0,7.2895]
[1735641357922,5.9436,3397.2,3397.0,0.7895]
[1735641358778,2.94368,3397.1,3397.0,0.7895]
[1735641358945,3.0,3397.2,3397.0,0.7895]
[1735641359278,5.94362,3397.2,3397.0,0.7895]
[1735641359885,5.94362,3397.2,3397.1,6.5]
[1735641363676,2.94362,3397.2,3397.1,6.5]
[1735641364479,2.94338,3397.5,3397.1,7.3142062]
[1735641364840,2.94343,3397.4,3397.1,7.3142062]
[1735641365682,2.94316,3397.7,3397.2,0.7663]
[1735641365878,0.39167081,3397.8,3397.3,6.5]
[1735641366185,2.94333,3397.6,3397.3,6.5]
[1735641366403,2.94333,3397.6,3397.4,0.80805062]
[1735641366943,2.94334,3397.5,3397.4,0.80805062]
[1735641367150,0.39167081,3397.8,3397.2,0.7663]
[1735641367349,2.94345,3397.4,3397.3,0.06094836]
[1735641367906,2.94359,3397.3,3397.2,6.5]
[1735641368211,2.94359,3397.3,3397.2,6.55891675]
[1735641369938,2.94359,3397.3,3397.2,0.05891675]
[1735641370247,3.0,3397.7,3397.2,0.05891675]
[1735641370454,2.94336,3397.5,3397.3,0.7663]
[1735641371171,2.94336,3397.5,3397.4,0.05724267]
[1735641371459,2.94336,3397.5,3397.3,0.7663]
[1735641371894,2.94336,3397.5,3397.4,0.05724267]
[1735641372404,2.94326,3397.6,3397.4,0.05724267]
[1735641372772,2.94334,3397.5,3397.4,0.05724267]
[1735641374002,2.94334,3397.5,3397.4,6.55724267]
[1735641375195,2.94315,3397.8,3397.4,7.41320894]
[1735641375355,3.64397439,3398.1,3397.4,7.41320894]
[1735641375356,2.94317,3397.7,3397.4,7.41320894]
[1735641375561,2.94317,3397.7,3397.4,8.43424954]
[1735641376098,2.94317,3397.7,3397.6,6.5]
[1735641376471,2.94317,3397.7,3397.6,6.55705011]
[1735641381492,2.94305,3397.9,3397.6,6.55705011]
[1735641382897,2.94305,3397.9,3397.8,6.5]
[1735641383197,3.0,3398.0,3397.8,6.5]
[1735641383401,5.94293,3398.0,3397.8,6.5]
[1735641383709,5.94293,3398.0,3397.8,6.55705011]
[1735641384101,2.84797439,3398.1,3397.8,6.55705011]
[1735641384401,2.94277,3398.2,3397.8,7.31735011]
[1735641384577,3.0,3398.3,3397.8,7.31735011]
[1735641384993,5.94266,3398.3,3397.8,7.31735011]
[1735641385427,5.94266,3398.3,3397.9,1.02104646]
[1735641385735,2.94266,3398.3,3397.9,1.07768186]
[1735641386039,2.94266,3398.3,3397.9,7.57768186]
[1735641386909,2.94266,3398.3,3398.2,6.5]
[1735641387114,3.33433081,3398.3,3398.2,6.5]
[1735641387416,3.33433081,3398.3,3398.2,6.55496874]
[1735641398374,0.39167081,3398.3,3398.2,6.55496874]
[1735641398675,2.84797439,3398.4,3398.2,6.55496874]
[1735641399771,5.79056439,3398.4,3398.2,6.55496874]
[1735641400081,6.1822352,3398.4,3398.3,6.5]
[1735641400235,6.1822352,3398.4,3398.3,6.55415433]
[1735641400862,6.1822352,3398.4,3398.3,0.05415433]
[1735641401039,6.1822352,3398.4,3398.1,6.5]
[1735641401238,6.1822352,3398.4,3398.3,0.05415433]
[1735641401451,6.1822352,3398.4,3398.1,6.5]
[1735641401667,6.1822352,3398.4,3398.3,0.05415433]
[1735641401853,6.1822352,3398.4,3398.1,6.5]
[1735641402069,6.1822352,3398.4,3398.3,0.05415433]
[1735641402266,6.1822352,3398.4,3398.1,6.5]
[1735641402577,6.1822352,3398.4,3398.3,0.0540655]
[1735641402776,6.1822352,3398.4,3398.1,6.5]
[1735641402982,6.1822352,3398.4,3398.3,6.5540655]
[1735641403137,6.1822352,3398.4,3398.3,6.5]
[1735641403437,6.1822352,3398.4,3398.3,6.5540655]
[1735641404172,3.2396452,3398.4,3398.3,6.5540655]
[1735641406172,2.84797439,3398.4,3398.3,6.5540655]
[1735641413773,2.94251,3398.5,3398.3,6.5540655]
[1735641414894,2.94251,3398.5,3398.4,6.5]
[1735641415107,2.94251,3398.5,3398.4,6.55398407]
[1735641416084,2.94251,3398.5,3398.4,0.05398407]
[1735641417083,2.94251,3398.5,3398.4,6.55398407]
[1735641421204,3.33418081,3398.5,3398.4,6.55398407]
[1735641422207,0.39167081,3398.5,3398.4,6.55398407]
[1735641423311,3.33414081,3398.5,3398.4,6.55398407]
[1735641424015,3.33414081,3398.5,3398.4,7.57389572]
[1735641425131,0.7993,3398.7,3398.4,6.55398407]
[1735641425693,2.94247,3398.5,3398.4,6.55398407]
[1735641425915,2.94247,3398.5,3398.4,0.05398407]
[1735641426976,2.94247,3398.5,3398.4,6.55398407]
[1735641427476,2.94247,3398.5,3398.4,9.10408312]
[1735641429092,2.94235,3398.7,3398.4,9.10408312]
[1735641429820,2.94242,3398.6,3398.4,9.10408312]
[1735641430222,2.94247,3398.5,3398.4,9.10408312]
[1735641430943,2.94247,3398.5,3398.4,0.05398407]
[1735641432324,2.94247,3398.5,3398.4,2.60534307]
[1735641432822,2.94247,3398.5,3398.4,9.10534307]
[1735641433841,2.94247,3398.5,3398.4,2.60534307]
[1735641434850,2.94247,3398.5,3398.4,9.10534307]
[1735641442161,3.75557,3398.5,3398.4,9.10534307]
[1735641442552,2.94247,3398.5,3398.4,9.10534307]
[1735641445103,2.94235,3398.7,3398.4,9.85634307]
[1735641445836,2.9424,3398.6,3398.4,9.85634307]
[1735641446578,2.94229,3398.8,3398.4,9.85634307]
[1735641446955,2.9423,3398.7,3398.5,9.051359]
[1735641447262,2.9423,3398.7,3398.6,0.0533106]
[1735641447975,2.9423,3398.7,3398.6,2.6046696]
[1735641449882,2.9423,3398.7,3398.6,9.1046696]
[1735641450967,2.9423,3398.7,3398.6,2.6046696]
[1735641451387,2.9423,3398.7,3398.6,0.0533106]
[1735641451678,2.9423,3398.7,3398.4,6.5]
[1735641451679,3.7665,3398.7,3398.4,6.5]
[1735641451870,2.94247,3398.5,3398.3,7.73612006]
[1735641452443,2.94233,3398.7,3398.3,7.73612006]
[1735641452750,2.94233,3398.7,3398.4,1.28772744]
[1735641452952,2.94233,3398.7,3398.4,8.24406638]
[1735641453177,2.94233,3398.7,3398.4,12.02929594]
[1735641453480,2.94233,3398.7,3398.5,0.27545656]
[1735641453780,2.94233,3398.7,3398.5,0.45633894]
[1735641454276,2.94233,3398.7,3398.4,12.379357]
[1735641454576,1.61794932,3399.3,3398.6,2.5491095]
[1735641454577,0.36658885,3399.3,3398.6,2.5491095]
[1735641455075,2.94213,3398.9,3398.7,0.18085978]
[1735641455283,2.94221,3398.8,3398.7,0.18085978]
[1735641455441,2.94221,3398.8,3398.7,0.45625774]
[1735641455636,2.94221,3398.8,3398.7,0.27539796]
[1735641455843,2.94221,3398.8,3398.7,2.82450746]
[1735641456055,2.94221,3398.8,3398.7,2.5491095]
[1735641456256,2.94221,3398.8,3398.7,2.7299531]
[1735641457183,2.94221,3398.8,3398.7,10.46283347]
[1735641457573,5.38435932,3398.8,3398.7,10.28198987]
[1735641457774,8.38435932,3398.8,3398.7,10.28198987]
[1735641458082,8.38435932,3398.8,3398.7,2.60219072]
[1735641458646,7.13299885,3398.8,3398.7,2.60219072]
[1735641458847,8.38435932,3398.8,3398.7,2.60219072]
[1735641459381,8.38435932,3398.8,3398.7,0.05308122]
[1735641459777,2.9428,3398.2,3397.9,1.23288037]
[1735641460671,3.76666,3398.6,3397.8,1.23288037]
[1735641460672,2.94282,3398.1,3397.8,1.23288037]
[1735641460872,2.94299,3397.9,3397.8,7.73288037]
[1735641461057,4.19435047,3397.9,3397.8,7.73288037]
[1735641461251,5.01855047,3397.9,3397.8,7.73288037]
[1735641461451,5.01855047,3397.9,3397.8,6.5]
[1735641461953,2.94308,3397.8,3397.7,1.23288037]
[1735641462664,2.07556047,3397.9,3397.3,6.5]
[1735641462665,2.94325,3397.6,3397.3,6.5]
[1735641462861,2.94325,3397.6,3397.4,6.5]
[1735641463066,2.94312,3397.8,3397.4,6.5]
[1735641463552,4.19448047,3397.8,3397.4,6.5]
[1735641463991,5.38491932,3398.2,3397.4,7.9564]
[1735641464163,2.94291,3398.0,3397.4,7.9564]
[1735641464945,2.94291,3398.0,3397.6,6.5]
[1735641465894,2.94291,3398.0,3397.9,6.5]
[1735641466794,2.9427,3398.3,3397.9,6.5]
[1735641467099,2.9425,3398.5,3398.0,1.4526]
[1735641467266,2.9425,3398.5,3398.0,0.8026]
[1735641467587,3.30893885,3398.7,3398.0,0.8026]
[1735641467588,2.94257,3398.4,3398.0,0.8026]
[1735641467953,2.94257,3398.4,3398.1,0.05066273]
[1735641468154,2.94257,3398.4,3398.0,0.8026]
[1735641468553,2.94257,3398.4,3398.1,0.05066273]
[1735641468856,2.94257,3398.4,3398.3,6.5]
[1735641469457,2.94257,3398.4,3398.3,6.55055908]
[1735641473011,2.94257,3398.4,3398.3,0.05055908]
[1735641473675,2.94257,3398.4,3398.2,6.5]
[1735641473875,2.94257,3398.4,3398.3,6.55072195]
[1735641477014,0.36658885,3398.7,3398.3,6.55072195]
[1735641477215,2.94243,3398.6,3398.3,6.55072195]
[1735641477514,2.94248,3398.5,3398.3,6.55072195]
[1735641478894,2.94248,3398.5,3398.4,6.5]
[1735641479416,2.94248,3398.5,3398.4,6.55072195]
[1735641480832,2.94248,3398.5,3398.4,0.05072195]
[1735641481027,3.30906885,3398.5,3398.4,0.05072195]
[1735641481324,2.94273,3398.2,3398.1,6.5]
[1735641482026,2.94301,3397.9,3397.7,1.23288037]
[1735641482588,2.94301,3397.9,3397.6,6.5]
[1735641483000,5.79040377,3398.2,3397.5,6.5]
[1735641483208,2.94325,3397.6,3397.5,6.5]
[1735641483894,2.94325,3397.6,3397.3,1.23288037]
[1735641484097,2.94342,3397.4,3397.3,1.23288037]
[1735641484693,3.7754,3397.8,3397.3,1.23288037]
[1735641485020,3.7754,3397.8,3397.3,0.8175]
[1735641485021,2.94335,3397.5,3397.3,0.8175]
[1735641485207,2.94335,3397.5,3397.2,6.5]
[1735641485919,2.94335,3397.5,3397.3,6.5]
[1735641486428,2.9432,3397.7,3397.3,6.5]
[1735641486733,2.9432,3397.7,3397.3,7.23175]
[1735641486936,2.94301,3397.9,3397.4,7.3175]
[1735641487290,3.71821,3398.2,3397.4,7.3175]
[1735641487504,0.7754,3398.2,3397.4,7.3175]
[1735641487704,2.94297,3398.0,3397.4,7.3175]
[1735641487924,2.94297,3398.0,3397.5,0.04763164]
[1735641489008,2.94297,3398.0,3397.6,6.5]
[1735641489408,2.94297,3398.0,3397.7,0.04749844]
[1735641489999,2.94297,3398.0,3397.9,6.5]
[1735641490402,2.94297,3398.0,3397.9,6.54749104]
[1735641490940,2.94297,3398.0,3397.9,0.04749104]
[1735641491929,7.08495885,3398.0,3397.9,0.04749104]
[1735641492118,3.0,3397.9,3397.5,6.5]
[1735641492299,2.94325,3397.6,3397.5,6.5]
[1735641492732,0.36658885,3397.9,3397.5,6.5]
[1735641492961,2.94309,3397.8,3397.4,6.5]
[1735641493439,2.94309,3397.8,3397.4,7.23175]
[1735641493814,2.94309,3397.8,3397.6,6.5]
[1735641495647,2.94316,3397.7,3397.6,6.5]
[1735641497155,2.94306,3397.9,3397.6,7.2637]
[1735641498629,2.94283,3398.1,3397.6,7.2637]
[1735641498816,2.94268,3398.3,3397.7,0.72637]
[1735641499556,2.94268,3398.3,3397.7,1.0015133]
[1735641500159,2.94268,3398.3,3398.1,6.5]
[1735641502958,2.94268,3398.3,3398.2,0.04462315]
[1735641506239,4.19428302,3398.3,3398.2,0.04462315]
[1735641506444,2.94282,3398.1,3398.0,6.5]
[1735641506958,2.94294,3398.0,3397.8,6.5]
[1735641507956,2.94294,3398.0,3397.9,6.5]
[1735641508825,3.75194,3398.0,3397.8,6.5]
[1735641509042,4.19459302,3397.9,3397.8,6.5]
[1735641509973,2.94325,3397.6,3397.5,6.5]
[1735641516899,3.0,3397.9,3397.5,6.5]
[1735641517204,2.94315,3397.8,3397.5,7.2613]
[1735641517385,3.0,3397.9,3397.5,7.2613]
[1735641517694,2.94318,3397.7,3397.5,7.2613]
[1735641517901,2.94318,3397.7,3397.6,6.54481542]
[1735641521105,2.94289,3398.1,3397.7,0.7613]
[1735641521607,2.94289,3398.1,3397.8,0.04477845]
[1735641521804,3.30926885,3398.3,3397.8,0.04477845]
[1735641522011,2.94251,3398.5,3397.7,0.7613]
[1735641522207,2.94251,3398.5,3397.9,0.04477845]
[1735641522409,2.94266,3398.3,3397.8,0.77947749]
[1735641522569,2.94266,3398.3,3398.0,0.04477845]
[1735641522766,2.94266,3398.3,3397.8,0.77947749]
[1735641522965,0.7509,3398.6,3398.3,6.5]
[1735641522966,2.94256,3398.4,3398.3,6.5]
[1735641523413,2.94256,3398.4,3398.3,6.54477845]
[1735641525896,2.94256,3398.4,3398.3,0.04477845]
[1735641526106,3.7509,3398.6,3398.2,6.5]
[1735641526415,2.94264,3398.3,3398.2,6.5]
[1735641533016,2.94273,3398.2,3398.1,6.5]
[1735641533979,2.94288,3398.1,3397.9,6.5]
[1735641535626,2.9429,3398.0,3397.9,6.5]
[1735641535929,2.9429,3398.0,3397.8,6.5]
[1735641536928,2.9429,3398.0,3397.9,6.5]
[1735641540903,2.0097875,3398.1,3397.8,6.5]
[1735641541110,4.1946375,3397.9,3397.8,6.5]
[1735641541452,3.70125,3397.9,3397.8,6.5]
[1735641541937,3.70125,3397.9,3397.6,1.23288037]
[1735641542111,3.70125,3397.9,3397.5,6.5]
[1735641542529,2.94325,3397.6,3397.5,6.5]
[1735641542822,2.94325,3397.6,3397.1,2.01528037]
[1735641543028,2.94325,3397.6,3397.2,1.82311795]
[1735641543242,2.94325,3397.6,3397.2,2.09858865]
[1735641543752,2.94325,3397.6,3397.3,0.2754707]
[1735641543941,2.94325,3397.6,3397.5,6.5]
[1735641545631,2.94312,3397.8,3397.5,6.5]
[1735641545827,2.94294,3398.0,3397.5,7.3323118]
[1735641546045,2.94294,3398.0,3397.6,0.8204]
[1735641546526,2.94299,3397.9,3397.6,0.8204]
[1735641546948,2.94299,3397.9,3397.7,6.5]
[1735641547848,2.94299,3397.9,3397.8,0.04450485]
[1735641548268,2.94299,3397.9,3397.7,6.5]
[1735641548463,2.94299,3397.9,3397.8,0.04450485]
[1735641548841,2.94299,3397.9,3397.7,6.5]
[1735641549139,2.94299,3397.9,3397.8,0.04450485]
[1735641549478,2.94299,3397.9,3397.7,6.5]
[1735641549679,2.94299,3397.9,3397.8,0.04450485]
[1735641550096,2.94299,3397.9,3397.7,6.5]
[1735641550291,2.94299,3397.9,3397.8,0.04450485]
[1735641550647,2.94299,3397.9,3397.7,6.85424864]
[1735641550848,0.7967,3398.2,3397.8,6.54450485]
[1735641551043,2.94293,3398.0,3397.8,6.54450485]
[1735641551947,2.94293,3398.0,3397.8,0.04450485]
[1735641552383,2.94293,3398.0,3397.7,6.5]
[1735641552704,2.94293,3398.0,3397.9,0.04450485]
[1735641552931,2.94293,3398.0,3397.9,6.5]
[1735641553067,2.94293,3398.0,3397.9,6.54450485]
[1735641553267,3.0,3398.3,3397.9,6.54450485]
[1735641553603,2.94282,3398.1,3397.9,6.54450485]
[1735641553916,2.94282,3398.1,3397.9,0.04450485]
[1735641554383,2.94282,3398.1,3397.7,0.74676155]
[1735641554549,2.94282,3398.1,3398.0,0.04451225]
[1735641554750,2.94282,3398.1,3397.6,0.8204]
[1735641554948,2.94282,3398.1,3398.0,6.5]
[1735641555596,3.64482192,3398.4,3398.0,6.54302875]
[1735641555916,2.94275,3398.2,3398.0,6.54302875]
[1735641556258,2.94282,3398.1,3398.0,6.54302875]
[1735641558071,2.94282,3398.1,3398.0,0.04302875]
[1735641558589,3.0,3398.3,3397.7,6.5]
[1735641558809,2.94282,3398.1,3398.0,0.04302875]
[1735641559012,2.94308,3397.8,3397.7,6.5]
[1735641559894,2.94308,3397.8,3397.6,1.23288037]
[1735641560193,2.94308,3397.8,3397.4,1.23288037]
[1735641560378,2.94308,3397.8,3397.5,0.86521194]
[1735641560905,2.94308,3397.8,3397.7,6.5]
[1735641562251,6.57730192,3397.8,3397.7,6.5]
[1735641562367,6.94389077,3397.8,3397.7,6.5]
[1735641562567,6.94389077,3397.8,3397.7,7.52095906]
[1735641563032,6.94389077,3397.8,3397.7,1.02095906]
[1735641563205,6.94389077,3397.8,3397.7,1.06255622]
[1735641563568,4.09576885,3397.8,3397.7,1.06255622]
[1735641563873,2.94308,3397.8,3397.7,0.04159716]
[1735641564307,2.94319,3397.7,3397.5,6.5]
[1735641564513,2.94298,3398.0,3397.6,0.7748]
[1735641564664,2.94275,3398.2,3397.6,0.7748]
[1735641564871,2.94283,3398.1,3397.7,6.5]
[1735641565393,2.94283,3398.1,3397.8,0.2756226]
[1735641565706,2.9429,3398.0,3397.8,0.2756226]
[1735641565913,2.9429,3398.0,3397.7,6.5]
[1735641566104,2.9429,3398.0,3397.7,7.2414466]
[1735641566616,2.9429,3398.0,3397.9,1.02054473]
[1735641567925,1.15268885,3398.5,3397.9,6.5]
[1735641568062,2.9429,3398.0,3397.9,6.5]
[1735641570012,2.9429,3398.0,3397.7,7.73288037]
[1735641570216,2.9429,3398.0,3397.8,1.03578007]
[1735641570372,2.94303,3397.9,3397.7,6.5]
[1735641571018,2.94303,3397.9,3397.6,2.00768037]
[1735641571157,2.94303,3397.9,3397.8,1.02090678]
[1735641571855,2.94303,3397.9,3397.8,7.52090678]
[1735641573618,2.84812192,3398.4,3397.8,7.52090678]
[1735641573619,2.94286,3398.1,3397.8,7.52090678]
[1735641574662,2.94286,3398.1,3397.8,9.05218951]
[1735641575102,2.94286,3398.1,3398.0,6.5]
[1735641575919,2.94286,3398.1,3398.0,7.52090678]
[1735641577907,2.94286,3398.1,3398.0,7.56261489]
[1735641578216,2.94286,3398.1,3398.0,6.54170811]
[1735641581213,2.94273,3398.2,3398.0,8.09676696]
[1735641581918,2.94273,3398.2,3398.0,9.1177271]
[1735641582125,2.94273,3398.2,3398.0,10.64916731]
[1735641582832,2.94282,3398.1,3398.0,10.64916731]
[1735641582984,2.94282,3398.1,3398.0,0.04170811]
[1735641584833,2.94282,3398.1,3398.0,2.59404763]
[1735641585931,2.94282,3398.1,3398.0,9.09404763]
[1735641587842,1.2515058,3398.3,3398.0,9.09404763]
[1735641587843,4.1942058,3398.3,3398.0,9.09404763]
[1735641588697,4.1942058,3398.3,3398.1,2.55233952]
[1735641588876,2.94251,3398.5,3398.2,7.5326928]
[1735641589418,2.94251,3398.5,3398.3,0.04128663]
[1735641589791,2.94251,3398.5,3398.2,6.5]
[1735641590004,2.94251,3398.5,3398.4,0.04128663]
[1735641590290,2.94251,3398.5,3398.3,2.55233952]
[1735641591122,2.94251,3398.5,3398.4,6.54128663]
[1735641592044,2.94251,3398.5,3398.4,0.04128663]
[1735641592625,3.30909885,3398.5,3398.4,0.04128663]
[1735641594415,2.94264,3398.3,3398.2,6.5]
[1735641594626,4.1941458,3398.3,3398.2,6.5]
[1735641594806,4.1941458,3398.3,3397.9,1.23288037]
[1735641595127,4.1941458,3398.3,3398.0,6.5]
[1735641595595,2.94282,3398.1,3398.0,6.5]
[1735641595792,4.1943258,3398.1,3398.0,6.5]
[1735641596121,2.9429,3398.0,3397.9,6.5]
[1735641596323,4.1943058,3398.2,3397.9,6.5]
[1735641597617,1.2515058,3398.2,3398.0,1.02086087]
[1735641597798,2.94282,3398.1,3398.0,1.02086087]
[1735641598380,2.94268,3398.3,3398.0,1.02086087]
[1735641598609,4.1941858,3398.3,3398.0,1.78726087]
[1735641598807,2.94282,3398.1,3398.0,1.02086087]
[1735641599123,4.1943258,3398.1,3398.0,7.52086087]
[1735641599424,4.1943258,3398.1,3398.0,6.5]
[1735641601038,4.1943258,3398.1,3397.8,7.73288037]
[1735641601537,4.1943258,3398.1,3397.8,6.5]
[1735641601937,4.1941558,3398.3,3398.0,6.5]
[1735641602235,4.1939958,3398.5,3398.0,7.2969]
[1735641602534,2.94249,3398.5,3398.0,7.2969]
[1735641602736,0.7821,3398.8,3398.1,0.2757358]
[1735641602938,2.94241,3398.6,3398.2,6.5]
[1735641603123,1.2515058,3398.5,3398.2,6.5]
[1735641603898,1.2515058,3398.5,3398.0,0.7969]
[1735641603899,1.2515058,3398.5,3398.4,6.5]
[1735641605138,4.2515058,3398.7,3398.4,6.5]
[1735641605314,4.1938658,3398.7,3398.4,6.5]
[1735641607161,4.1938658,3398.7,3398.6,6.5]
[1735641607701,4.19269614,3398.7,3398.6,6.5]
[1735641607915,4.19269614,3398.7,3398.6,6.54134577]
[1735641608910,4.19269614,3398.7,3398.6,0.04134577]
[1735641610034,4.19269614,3398.7,3398.6,6.54134577]
[1735641614406,2.94236,3398.7,3398.6,6.54134577]
[1735641614625,2.94236,3398.7,3398.6,7.19548035]
[1735641615548,5.94236,3398.7,3398.6,7.19548035]
[1735641616424,5.94236,3398.7,3398.6,6.54134577]
[1735641623941,5.94236,3398.7,3398.6,0.04134577]
[1735641624428,5.94236,3398.7,3398.4,6.5]
[1735641624429,3.0,3398.6,3398.4,6.5]
[1735641624755,4.2515058,3398.6,3398.4,6.5]
[1735641625052,4.1939358,3398.6,3398.3,7.2782]
[1735641625259,4.1939358,3398.6,3398.4,0.85110804]
[1735641625844,4.1939358,3398.6,3398.3,7.2782]
[1735641626048,4.1939358,3398.6,3398.4,9.05456942]
[1735641626933,4.1939358,3398.6,3398.5,6.5]
[1735641627719,4.1939358,3398.6,3398.5,7.52182777]
[1735641627973,4.1939358,3398.6,3398.5,1.02182777]
[1735641629247,2.94243,3398.6,3398.4,6.5]
[1735641629447,2.94243,3398.6,3398.5,0.85110804]
[1735641629972,2.94243,3398.6,3398.5,7.35110804]
[1735641631262,2.94243,3398.6,3398.5,8.37277902]
[1735641631422,3.0,3398.7,3398.5,8.37277902]
[1735641631624,2.9423,3398.7,3398.6,1.03838594]
[1735641631873,2.9423,3398.7,3398.5,7.52167098]
[1735641632236,1.2515058,3398.8,3398.5,7.52167098]
[1735641632462,5.94238,3398.6,3398.5,6.5]
[1735641633046,3.0,3398.6,3398.5,6.5]
[1735641634581,3.0,3398.6,3398.5,7.52176163]
[1735641634885,3.0,3398.6,3398.5,8.47504583]
[1735641635377,3.0,3398.6,3398.5,10.00767034]
[1735641635583,3.0,3398.6,3398.5,7.4532842]
[1735641636083,2.94209,3399.0,3398.5,7.4532842]
[1735641636474,3.0,3398.9,3398.6,0.27604321]
[1735641636689,3.0,3398.9,3398.7,0.77293274]
[1735641637292,0.8283,3399.2,3398.7,0.77293274]
[1735641637293,2.9419,3399.2,3398.9,6.5]
[1735641637601,2.94183,3399.3,3399.0,0.8005]
[1735641637745,1.2515058,3399.5,3399.0,0.8005]
[1735641637944,3.0,3399.3,3399.1,0.80089702]
[1735641638655,4.1933258,3399.3,3399.1,0.80089702]
[1735641638861,3.0,3399.2,3399.1,6.57084702]
[1735641639455,3.0,3399.2,3399.1,7.5918169]
[1735641639964,3.0,3399.2,3399.1,1.0918169]
[1735641640271,2.94186,3399.2,3399.1,1.0918169]
[1735641640474,3.77016,3399.2,3399.1,1.0918169]
[1735641640692,3.77016,3399.2,3399.1,0.07084702]
[1735641640846,3.77016,3399.2,3398.7,1.23473304]
[1735641640847,2.94204,3399.0,3398.9,6.5]
[1735641641085,4.1935458,3399.0,3398.9,6.56999726]
[1735641643635,3.0,3399.3,3398.9,8.02749699]
[1735641643787,4.1932958,3399.3,3398.9,8.02749699]
[1735641645000,2.94179,3399.3,3399.2,6.5]
[1735641645417,2.94179,3399.3,3399.2,6.57000465]
[1735641647429,3.0,3399.3,3399.2,6.57000465]
[1735641647617,3.0,3399.3,3399.2,7.30705511]
[1735641650314,3.0,3399.3,3399.2,6.57000465]
[1735641657083,3.0,3399.3,3399.2,7.38580465]
[1735641657280,1.2515058,3399.7,3399.2,7.38580465]
[1735641657491,0.7972,3400.2,3399.2,7.38580465]
[1735641657648,2.94147,3399.7,3399.2,7.38580465]
[1735641657850,2.94147,3399.7,3399.3,0.73858047]
[1735641658044,1.2515058,3400.1,3399.3,0.73858047]
[1735641658045,3.0,3399.8,3399.3,0.73858047]
[1735641658250,3.0,3399.8,3399.4,0.06989381]
[1735641658629,3.0,3399.8,3399.3,0.73858047]
[1735641659042,3.0,3399.8,3399.7,6.5]
[1735641659590,3.0,3399.8,3399.7,6.56989381]
[1735641659939,2.94112,3400.1,3399.7,7.22688319]
[1735641660069,1.2515058,3400.3,3399.7,8.04268319]
[1735641660273,3.0,3400.1,3399.7,8.04268319]
[1735641660498,1.2515058,3400.3,3399.7,8.04268319]
[1735641660684,0.36658885,3400.6,3399.9,0.8158]
[1735641660896,3.14435312,3401.0,3400.2,6.5]
[1735641661215,2.94058,3400.7,3400.3,0.88532447]
[1735641661410,1.2515058,3400.5,3400.3,0.06952447]
[1735641661616,2.94083,3400.4,3400.3,0.06952447]
[1735641661913,4.2515058,3400.5,3400.4,6.5]
[1735641662075,7.1922458,3400.5,3400.4,6.56925123]
[1735641662275,5.94074,3400.5,3400.4,6.56925123]
[1735641663014,5.94074,3400.5,3400.4,0.06925123]
[1735641664917,5.94074,3400.5,3400.4,6.56925123]
[1735641666947,5.94074,3400.5,3400.4,7.30643635]
[1735641667113,2.99032,3401.0,3400.4,7.30643635]